Cogmind - Beta 14 @@@ ROGUE MODE // 2024.09.24 @ 21:18:03 Player: Kitarik02 Result: Destroyed by as-42547 with Assembled Heavy Rifle Performance ------------- Evolutions (0) 0 Regions Visited (2) 400 Robots Destroyed (25) 125 Value Destroyed (679) 679 Prototype IDs (0) 0 Alien Tech Used (0) 0 Bonus (0) 0 TOTAL SCORE: 1204 Bonus ------- None Cogmind --------- Core Integrity 0/250 Matter 300/300 Energy 153/160 System Corruption 2% Temperature Cool (54) Movement Core (250) Ox4 Location -10/Mines Parts ------- > --- POWER (1) -------- Light Nuclear Core > --- PROPULSION (2) --- (None) > --- UTILITY (2) ------ Small Storage Unit Structural Scanner > --- WEAPON (2) ------- EM Shotgun > --- INVENTORY (8) ---- Aluminum Leg Aluminum Leg Hardened Light Armor Plating Hardened Light Armor Plating Light Assault Rifle Light Assault Rifle Peak State ------------ > --- POWER ------------ Light Nuclear Core > --- PROPULSION ------- Aluminum Leg Wheel > --- UTILITY ---------- Small Storage Unit Structural Scanner > --- WEAPON ----------- EM Shotgun EM Shotgun > --- INVENTORY -------- Aluminum Leg Hardened Light Armor Plating Hardened Light Armor Plating Light Assault Rifle Light Assault Rifle [Rating: 11] Favorites ----------- Power Ion Engine Engine Ion Engine Power Core Light Nuclear Core Propulsion Light Treads Treads Light Treads Leg Aluminum Leg Wheel Wheel Utility Small Storage Unit Device Structural Scanner Storage Small Storage Unit Weapon Small Laser Energy Gun Small Laser Ballistic Gun Assault Rifle Build | -11 -10 -10 ------- Run | Yrd Mat Min Slots Evolved . | . . . Power . | . . . Propulsion . | . . . Utility . | . . . Weapon . | . . . Parts Attached 18 | 5 10 3 Power 3 | 1 1 1 Engine 2 | 1 1 . Core 1 | . . 1 Reactor . | . . . Propulsion 6 | 2 2 2 Treads 2 | 2 . . Leg 2 | . . 2 Wheel 2 | . 2 . Hover . | . . . Flight . | . . . Utility 3 | 1 2 . Device 1 | . 1 . Storage 2 | 1 1 . Processor . | . . . Hackware . | . . . Protection . | . . . Artifact . | . . . Weapon 6 | 1 5 . Energy Gun 3 | . 3 . Energy Cannon . | . . . Ballistic Gun 3 | 1 2 . Ballistic Cannon . | . . . Launcher . | . . . Special Weapon . | . . . Impact Weapon . | . . . Slashing Weapon . | . . . Piercing Weapon . | . . . Special Melee Weapon . | . . . Unidentified Prototypes . | . . . Parts Lost 6 | . 1 5 Power 2 | . 1 1 Propulsion 3 | . . 3 Utility . | . . . Weapon 1 | . . 1 Highest Loss Streak 3 | . 1 3 To Critical Strikes . | . . . Average Slot Usage (%) 97 | . 97 97 Engine 12 | . 13 4 Core 1 | . . 9 Treads 17 | . 21 . Leg 3 | . . 18 Wheel 6 | . 6 8 Device 4 | . 3 14 Storage 21 | . 22 14 Energy Gun 13 | . 10 28 Ballistic Gun 13 | . 16 . Peak Build Rating 11 | 5 10 11 Average Rating 7 | 3 7 10 On Entrance 5 | . 5 10 Naked Turns . | . . . Heaviest Build 17 | 12 15 17 Greatest Support 40 | 40 40 26 Greatest Overweight (x) . | . . . Average Overweight (x) . | . . . Largest Inventory Capacity 8 | 8 8 8 Average Capacity 7 | 6 8 8 Most Carried 8 | 7 8 7 Average Carried 6 | 3 6 6 Final Capacity 8 | 8 8 8 Final Carried 7 | 7 7 6 Class Distribution -------------------- 100% | Mutant Dominant Class ---------------- Mutant | -10/Materials Mutant | -10/Mines Resources | -11 -10 -10 ----------- Run | Yrd Mat Min Matter Collected 589 | 240 265 84 Remotely . | . . . Salvage Created 892 | . 532 360 Parts 62 | . 43 19 Haulers Intercepted . | . . . Recyclers Shooed . | . . . Parts Field Recycled . | . . . Retrieved Matter . | . . . Parts Self-Destructed . | . . . Prevented . | . . . Kills | -11 -10 -10 ------- Run | Yrd Mat Min Combat Hostiles Destroyed 22 | . 15 7 Guns 20 | . 15 5 AOE 2 | . . 2 Classes Destroyed 5 | . 4 1 Recycler 2 | . 1 1 Watcher 2 | . 2 . Swarmer 6 | . 6 . Grunt 15 | . 9 6 Assembled 1 | . . 1 Best Kill Streak 3 | . 3 3 Combat Bots Only 3 | . 3 2 Max Kills in Single Turn 1 | . 1 1 Gunslinging . | . . . Exploded 1 | . . 1 Melee . | . . . Uniques/NPCs Destroyed . | . . . Combat | -11 -10 -10 -------- Run | Yrd Mat Min Hostile Shots Fired 112 | . 83 29 Missed 24 | . 16 8 Damage Taken 1250 | . 704 546 Core 260 | . 148 112 Absorbed by Shields . | . . . Core Remaining (%) 100 | 100 . . Volleys Fired 85 | . 69 16 Largest 2 | . 2 2 Hottest 90 | . 60 90 Shots Fired 165 | . 133 32 Gun 165 | . 133 32 Cannon . | . . . Launcher . | . . . Special . | . . . Kinetic 88 | . 88 . Thermal 45 | . 45 . Explosive . | . . . Electromagnetic 32 | . . 32 Robot Hit Streak 12 | . 12 11 Robot Miss Streak 5 | . 4 5 Penetration Max . | . . . Secondary Targets 2 | . 1 1 Max Gunslinging Chain 1 | . 1 1 Shots Hit Robots 121 | . 94 27 Core Hits 56 | . 35 21 Critical Kills . | . . . Critical Parts Destroyed . | . . . Critical Strikes . | . . . Melee Attacks . | . . . Impact . | . . . Slashing . | . . . Piercing . | . . . Sneak Attacks . | . . . Combat Hostiles . | . . . Follow-up Attacks . | . . . Damage Inflicted 1529 | . 1016 513 Guns 1368 | . 1016 352 Cannons . | . . . Explosions 161 | . . 161 Melee . | . . . Ramming . | . . . Kinetic 641 | . 641 . Thermal 536 | . 375 161 Explosive . | . . . Electromagnetic 352 | . . 352 Impact . | . . . Slashing . | . . . Piercing . | . . . Highest Corruption 2 | . 2 2 Average Corruption 2 | . 2 2 Corruption Purged . | . . . Corruption Blocked . | . . . Effects 7 | . 2 5 Matter Fused 4 | . 1 3 Data Loss (minor) 2 | . 1 1 Misfires 1 | . . 1 Overload Shots . | . . . Overflow Damage . | . . . Projectiles . | . . . Explosions . | . . . Melee . | . . . Knockbacks . | . . . Impact . | . . . Kinetic . | . . . Secondary . | . . . Self-Inflicted Damage 61 | . . 61 Shots 3 | . . 3 Rammed . | . . . Targets Rammed . | . . . Kicked . | . . . Crushed . | . . . Highest Temperature 162 | . 96 162 Average Temperature 47 | . 34 67 Received Heat Transfer 430 | . 303 127 Siege Activations . | . . . Robots Corrupted . | . . . Combat Hostiles . | . . . Parts Fried . | . . . Impact Corruptions . | . . . Robots Melted . | . . . Combat Hostiles . | . . . Parts Melted . | . . . Heat Transferred 1000 | . 850 150 Parts Sabotaged . | . . . Parts Stolen . | . . . Parts Stripped . | . . . Power Chain Reactions 4 | . . 4 Alert | -11 -10 -10 ------- Run | Yrd Mat Min Peak Influence 351 | . 351 274 Initial 136 | . . 136 Average 126 | . 116 226 Maximum Alert Level 1 | . 1 1 Low Security (%) 68 | 100 73 30 Level 1 31 | . 26 70 Level 2 . | . . . Level 3 . | . . . Level 4 . | . . . Level 5 . | . . . High Security . | . . . Max Security . | . . . Squads Dispatched 4 | . 4 . Investigation 1 | . 1 . Extermination . | . . . Reinforcement 3 | . 3 . Assault . | . . . Garrison . | . . . Intercept . | . . . Searches Triggered . | . . . Construction Impeded . | . . . Haulers Reinforced . | . . . Active Scanning Responses . | . . . Cargo Convoy Interrupts . | . . . Stealth | -11 -10 -10 --------- Run | Yrd Mat Min Distress Signals 1 | . 1 . Communications Jammed . | . . . Distress Signals . | . . . Times Spotted 45 | . 27 18 Peak Tracking Total 9 | . 5 9 Tactical Retreats 2 | . 2 . Traps | -11 -10 -10 ------- Run | Yrd Mat Min Traps Triggered 1 | . 1 . Indirectly . | . . . Trap Hack Attempts . | . . . Triggered . | . . . Disarmed . | . . . Reprogrammed . | . . . Reused . | . . . Traps Extracted . | . . . Installed . | . . . Triggered . | . . . Machines | -11 -10 -10 ---------- Run | Yrd Mat Min Machines Disabled . | . . . Max in Single Turn . | . . . Machines Repaired . | . . . Machines Dismantled . | . . . Machines Sabotaged . | . . . Overloaded Fab Kills . | . . . Hacking | -11 -10 -10 --------- Run | Yrd Mat Min Machines Accessed 3 | . 3 . Terminals 2 | . 2 . Fabricators . | . . . Repair Stations 1 | . 1 . Recycling Units . | . . . Scanalyzers . | . . . Garrison Access . | . . . Total Hacks 7 | . 7 . Successful 4 | . 4 . Failed 3 | . 3 . Catastrophic 3 | . 3 . Database Lockouts . | . . . Manual 6 | . 6 . Terminals 6 | . 6 . Fabricators . | . . . Repair Stations 1 | . 1 . Recycling Units . | . . . Scanalyzers . | . . . Garrison Access . | . . . Terminal Hacks 3 | . 3 . Record 1 | . 1 . Level Access Points 1 | . 1 . Branch Access Points 1 | . 1 . Fabricator Hacks . | . . . Repair Station Hacks . | . . . Recycling Unit Hacks . | . . . Scanalyzer . | . . . Garrison Access Hacks . | . . . Unauthorized Hacks 1 | . 1 . Terminals . | . . . Fabricators . | . . . Repair Stations 1 | . 1 . Patch 1 | . 1 . Recycling Units . | . . . Scanalyzers . | . . . Garrison Access . | . . . Data Cores Recovered . | . . . Used . | . . . Hacking Detections 2 | . 2 . Full Trace Events 1 | . 1 . Feedback Events . | . . . Feedback Blocked . | . . . Robot Schematics Acquired . | . . . Robots Built . | . . . Authchips . | . . . Time . | . . . Total Robot Build Rating . | . . . Part Schematics Acquired . | . . . Parts Built . | . . . Authchips . | . . . Time . | . . . Total Part Build Rating . | . . . Parts Repaired . | . . . Time . | . . . Parts Recycled . | . . . Recycled Matter . | . . . Retrieved Matter . | . . . Retrieved Components . | . . . Parts Scanalyzed . | . . . Part Schematics Acquired . | . . . Parts Damaged . | . . . Bothacking | -11 -10 -10 ------------ Run | Yrd Mat Min Used RIF Installer . | . . . Robots Hacked . | . . . Non-combat . | . . . Combat . | . . . Robot Hacks Applied . | . . . Relay Couplers Released . | . . . Fabnet Peak Effective % . | . . . Robots Rewired . | . . . Allies Hacked . | . . . Hacks Repelled . | . . . Allies | -11 -10 -10 -------- Run | Yrd Mat Min Total Allies 3 | . . 3 Largest Group 3 | . . 3 Highest-Rated Group 40 | . . 40 Highest-Rated Ally 16 | . . 16 Total Orders . | . . . Ally Attacks 14 | . . 14 Total Damage 131 | . . 131 Kills 1 | . . 1 Allies Corrupted . | . . . Allies Melted . | . . . Intel | -11 -10 -10 ------- Run | Yrd Mat Min Robot Analysis Total . | . . . Derelict Logs Recovered 1 | . . 1 Drone Launches . | . . . Drone Recoveries . | . . . Exploration | -11 -10 -10 ------------- Run | Yrd Mat Min Turns Passed 1482 | 94 1148 240 Spaces Moved 528 | 50 317 161 Core 2 | 2 . . Treads 258 | 48 210 . Legs 102 | . . 102 Wheels 166 | . 107 59 Hover . | . . . Flight . | . . . Fastest Speed 50 | 50 90 90 Average Speed 129 | 155 136 109 Slowest Speed 160 | 160 160 120 Overloaded Moves . | . . . Propulsion Burnouts . | . . . Robots Hopped . | . . . Cave-ins Triggered . | . . . Exploration Rate (%) 38 | 5 74 37 Regions Visited 2 Branch Regions 1 Pre-discovered Areas . | . . . Known Exits Taken 1 | . 1 . Unknown Exits Taken 1 | 1 . . Scrap Searched . | . . . Spaces Dug . | . . . Terrain Destroyed 16 | . . 16 Melee . | . . . Projectile . | . . . AOE 16 | . . 16 Terrain Rammed . | . . . Walls Destroyed . | . . . Machines Disabled . | . . . Actions | -11 -10 -10 --------- Run | Yrd Mat Min Total 1171 | 66 909 196 Wait 512 | . 499 13 Move 526 | 49 316 161 Hop . | . . . Pick Up 23 | 12 9 2 Fast Attach . | . . . Attach 13 | 5 5 3 Detach . | . . . Swap 5 | . 5 . Drop 7 | . 6 1 Fire 85 | . 69 16 Melee . | . . . Ram . | . . . Kick . | . . . Crush . | . . . Escape Stasis . | . . . Rewire . | . . . Trap . | . . . Miscellaneous . | . . . Route ------- -11/Scrapyard -10/Materials (discovered 5 exits: *Mat x3 / *Min x2) -10/Mines (discovered 2 exits: *Mat x2) History --------- Turn | Location | Event 2 | -11/Scrapyard | Met Revision 17 69 | -11/Scrapyard | Discovered new exit (range 12) 95 | -11/Scrapyard | Entered Materials 138 | -10/Materials | Discovered new exit (range 11) 305 | -10/Materials | Build established: Mutant 599 | -10/Materials | Discovered new exit (range 11) 665 | -10/Materials | Discovered new exit (range 16) 865 | -10/Materials | Discovered new exit (range 16) 1053 | -10/Materials | Core integrity fell below 50% 1217 | -10/Materials | Identified exit to Mines 1217 | -10/Materials | Identified exit to Materials 1243 | -10/Materials | Entered Mines 1271 | -10/Mines | Discovered exit to Materials (range 8) 1339 | -10/Mines | Assisted by bots powering up and referring to "LRC-V3" 1362 | -10/Mines | Discovered exit to Materials (range 5) 1441 | -10/Mines | Assembled infested the area 1483 | -10/Mines | Core integrity fell below 20% 1483 | -10/Mines | Destroyed by as-42547 with Assembled Heavy Rifle Last Messages --------------- decided the best way to defend their interests would be to start expanding in this direction." 01439_ System corrupted: FCS attempts to trigger EM Shotgun. 01439_ System corrupted: EM Shotgun misfires. 01441_ ALERT: Infestation in the mines, dispatching Demolisher response squad. 01467_ as-82755 destroyed. 01472_ Trooper 1a destroyed. 01473_ as-00870 destroyed. 01476_ C-30 ARC bursts open, deploying its payload. 01476_ D-53 Grenadier unfolds itself. 01478_ as-29780 destroyed. 01479_ Destroyed Asb. Hover Unit. 01480_ as-07652 destroyed. 01480_ EM Shotgun destroyed. 01480_ as-09447 destroyed. 01482_ Aluminum Leg destroyed. Map ----- +----------------------------------------------------+ | ### #######???###### ###????????????????????? | | ### #### ##???###### ####????????????????????? | | ##???????### ####?????????????????????? | | ##########???####### #####??????????????????????? | | ##########??#######"!"###???????????????????????? | | ##??????????### ##=%*######????????????????????? | | ##??????????## #"["######????????????????????? | | ###??????????## = ##????????????????????? | | ###?????????#### ##????????????????????? | | ##?????????##### #######???????????????? | | #####??????###" #######???????????????? | | #####?????###"[ ### #### ???????????????? | | ##########!% #### ##### ##???????????????? | | ## #########" ############# ##???????????????? | | ## ## ############# ##???????????????? | | ## ## ######## ##???????????????? | | ## ## ######## #############%###??????????????? | | ## ####??### ############# ###??????????????? | | ##### ####??########??????### ##??????????????? | | ## ##???######????##### ##??????????????? | | ## [ ##??????????######## dd ###??????????????? | | ## =%=##??????????##### # ###??????????????? | | ## ! ##??????????## g ##???????????????? | | ## !* ##??????????## ###???????????????? | | ## =%[ ##??????????## ####???????????????? | | ## """ ##????????#### @ ###???????????????? | | ## """ ##?? ???## ###???????????????? | | ## """ ##??## ##???????????????? | | ## ##??### a ! ##???????????????? | | ##########???## a [ ##???????????????? | | ##########???### aa#### ##???????????????? | | ?????????????#### a#### ###???????????????? | | ??????????????### ???## ###???????????????? | | ???????????????## ????##########????????????????? | | ??????????????? a ????? ######## ????????????????? | | ?????????????? ????????????????????????????????? | | ??????????????%!?????????????????????????????????? | | ?????????????????????????????????????????????????? | | ?????????????????????????????????????????????????? | | ?????????????????????????????????????????????????? | | ?????????????????????????????????????????????????? | | ?????????????????????????????????????????????????? | | ?????????????????????????????????????????????????? | | ?????????????????????????????????????????????????? | | ?????????????????????????????????????????????????? | | ?????????????????????????????????????????????????? | | ?????????????????????????????????????????????????? | | ?????????????????????????????????????????????????? | | ?????????????????????????????????????????????????? | | ?????????????????????????????????????????????????? | +----------------------------------------------------+ Best States ------------- Heat Dissipation 25 Energy Generation 14 Energy Capacity 400 Matter Stores 300 Matter Capacity 300 Sight Range 16 Terrain Scan Density 10 Evasion (%) 55 Recoil Reduction 2 Item Schematics ----------------- None Robot Schematics ------------------ None Fabricated ------------ Nothing Alien Tech Used ----------------- None Achievements -------------- Brute Force Challenges ------------ None Game ------ Seed Meow Manual? 1 Play Time 00:15:01 Cumulative 9.6 hours Start 2024.09.24 @ 21:02:44 End 2024.09.24 @ 21:18:03 Sessions 1 Manual Loads 0 Difficulty Rogue Special Mode None Game No. 31 Rogue 31 Adventurer 0 Explorer 0 Win Type - Total 0 Types 0/0/0/0/0/0/0/0/0 Lore% 8 Gallery% 16 Achievement% 16 Wizard Run 0 Options --------- Layout 1 ASCII 0 Keyboard 0 Movement Mouse Keybinds 0 Fullscreen 1 Font 20/SmallcapsGlow Map View 50x35 Zoom Use 0% Tactical HUD 1 Map Filters NONE Filters NONE Steam 1 RUN: 4d8f367e-657a-4713-929f-e6882a9ddd29